[Event "Championnat du monde jeunes U12F"]
[Date "2024.11.15"]
[White "Sevastsyanchuk, Anastasiya"]
[Black "Amanzhol, Khanzada"]
[WhiteElo "1595"]
[BlackElo "1780"]
[Round "1.21"]
[Result "0-1"]
[TimeControl "5400+30"]

1. e4 {[%clk 1:30:58]} 1... d6 {[%clk 1:30:14]} 2. d4 {[%clk 1:31:20]} 2... Nf6
{[%clk 1:30:38]} 3. Nc3 {[%clk 1:31:37]} 3... e5 {[%clk 1:30:46]} 4. Nf3 {[%clk
1:31:57]} 4... Nbd7 {[%clk 1:30:51]} 5. g4 {[%clk 1:32:16]} 5... Nxg4 {[%clk
1:18:21]} 6. Rg1 {[%clk 1:32:36]} 6... Ngf6 {[%clk 1:17:50]} 7. Bc4 {[%clk
1:32:08]} 7... h6 {[%clk 1:10:29]} 8. Be3 {[%clk 1:24:39]} 8... c6 {[%clk
1:05:15]} 9. Nh4 {[%clk 1:21:30]} 9... Nb6 {[%clk 0:59:19]} 10. Bb3 {[%clk
1:21:37]} 10... g5 {[%clk 0:53:05]} 11. Nf3 {[%clk 1:21:26]} 11... Qc7 {[%clk
0:48:21]} 12. Qe2 {[%clk 1:16:56]} 12... Bg4 {[%clk 0:47:11]} 13. dxe5 {[%clk
1:16:02]} 13... dxe5 {[%clk 0:47:22]} 14. O-O-O {[%clk 1:16:24]} 14... Bd6
{[%clk 0:45:19]} 15. Rd3 {[%clk 1:09:16]} 15... O-O-O {[%clk 0:44:01]} 16. Bxb6
{[%clk 1:09:19]} 16... axb6 {[%clk 0:42:48]} 17. Rh1 {[%clk 1:06:16]} 17... Nh5
18. Qd1 {[%clk 0:56:38]} 18... Nf4 {[%clk 0:41:57]} 19. Rd2 {[%clk 0:56:47]}
19... Bc5 {[%clk 0:41:53]} 20. Nb1 {[%clk 0:47:08]} 20... Bxf2 {[%clk 0:40:36]}
21. Rf1 {[%clk 0:42:17]} 21... Be3 {[%clk 0:40:43]} 22. Qe1 {[%clk 0:42:21]}
22... Bxd2+ {[%clk 0:36:35]} 23. Nbxd2 {[%clk 0:42:30]} 23... f6 {[%clk
0:35:33]} 24. Qf2 {[%clk 0:41:02]} 24... Kb8 {[%clk 0:31:56]} 25. Nc4 {[%clk
0:41:07]} 25... b5 {[%clk 0:28:59]} 26. Ne3 {[%clk 0:41:27]} 26... Bh3 {[%clk
0:29:12]} 27. Re1 {[%clk 0:41:10]} 27... Rh7 {[%clk 0:24:41]} 28. Ng1 {[%clk
0:39:57]} 28... Bc8 {[%clk 0:22:16]} 29. h4 {[%clk 0:36:56]} 29... Qb6 {[%clk
0:20:51]} 30. Qg3 {[%clk 0:35:30]} 30... Qc5 {[%clk 0:16:30]} 31. Kb1 {[%clk
0:34:24]} 31... gxh4 {[%clk 0:16:38]} 32. Qf3 {[%clk 0:34:18]} 32... Rg7 {[%clk
0:16:33]} 33. Ne2 {[%clk 0:34:05]} 33... Nxe2 {[%clk 0:16:27]} 34. Qxe2 {[%clk
0:34:22]} 34... Rg3 {[%clk 0:16:36]} 35. c3 {[%clk 0:31:56]} 35... h3 {[%clk
0:14:10]} 36. Qf2 {[%clk 0:32:01]} 36... Rg5 {[%clk 0:13:14]} 37. Qxf6 {[%clk
0:32:13]} 37... Rd2 {[%clk 0:11:56]} 38. Qxh6 {[%clk 0:32:18]} 38... Qxe3 {[%clk
0:11:40]} 39. Rc1 {[%clk 0:32:32]} 39... Qxe4+ {[%clk 0:11:39]} 40. Ka1 {[%clk
0:32:56]} 40... Qg2 {[%clk 0:11:45]} 41. Be6 {[%clk 0:32:42]} 41... Rg6 {[%clk
0:11:26]} 0-1

[Variant "Standard"]
[Site "Europe Echecs"]

[Event "Championnat du monde jeunes U12F"]
[Date "2024.11.15"]
[White "Bassari, Senem Gul"]
[Black "Busuioc, Amelie"]
[WhiteElo "1778"]
[BlackElo "1581"]
[Round "1.22"]
[Result "1-0"]
[TimeControl "5400+30"]

1. e4 {[%clk 1:30:55]} 1... c5 {[%clk 1:30:53]} 2. Nf3 {[%clk 1:31:19]} 2... Nc6
{[%clk 1:31:17]} 3. d3 {[%clk 1:31:35]} 3... b6 {[%clk 1:31:02]} 4. g3 {[%clk
1:31:58]} 4... Bb7 {[%clk 1:29:52]} 5. Bg2 {[%clk 1:32:19]} 5... Nf6 {[%clk
1:28:06]} 6. O-O {[%clk 1:31:42]} 6... d6 {[%clk 1:28:18]} 7. Nc3 {[%clk
1:30:17]} 7... g6 {[%clk 1:25:31]} 8. Bg5 {[%clk 1:28:12]} 8... Bg7 {[%clk
1:25:08]} 9. Qd2 {[%clk 1:28:20]} 9... O-O {[%clk 1:24:59]} 10. Bh6 {[%clk
1:27:55]} 10... Re8 {[%clk 1:24:50]} 11. Bxg7 {[%clk 1:27:39]} 11... Kxg7 {[%clk
1:25:02]} 12. d4 {[%clk 1:25:59]} 12... e6 {[%clk 1:21:21]} 13. Rad1 {[%clk
1:23:30]} 13... Qe7 {[%clk 1:20:31]} 14. dxc5 {[%clk 1:14:08]} 14... dxc5 15. e5
{[%clk 1:13:15]} 15... Ng4 {[%clk 1:17:34]} 16. Qf4 {[%clk 1:12:10]} 16... h5
{[%clk 1:16:19]} 17. h3 {[%clk 1:11:47]} 17... Nh6 {[%clk 1:15:43]} 18. Ne4
{[%clk 1:09:11]} 18... Ng8 {[%clk 1:15:17]} 19. Nd6 {[%clk 1:08:39]} 19... Rf8
{[%clk 1:13:39]} 20. Nxb7 {[%clk 1:03:33]} 20... Qxb7 {[%clk 1:13:43]} 21. Ng5
{[%clk 0:58:40]} 21... Qc7 {[%clk 1:11:47]} 22. Bxc6 {[%clk 0:57:25]} 22... Qxc6
{[%clk 1:11:09]} 23. Rd6 {[%clk 0:57:44]} 23... Qb7 {[%clk 1:10:12]} 24. Rfd1
{[%clk 0:57:43]} 24... Nh6 {[%clk 1:09:24]} 25. Rd7 {[%clk 0:57:52]} 25... Qa6
{[%clk 1:09:33]} 26. Nxe6+ {[%clk 0:58:11]} 26... Kh7 {[%clk 1:06:33]} 27. Nxf8+
{[%clk 0:57:43]} 27... Rxf8 {[%clk 1:06:47]} 28. e6 {[%clk 0:57:56]} 28... Qb5
{[%clk 1:05:28]} 29. e7 {[%clk 0:58:16]} 29... Re8 {[%clk 1:05:30]} 30. Qf6
{[%clk 0:58:11]} 30... Ng8 {[%clk 1:05:15]} 31. Qxf7+ {[%clk 0:58:34]} 31... Kh8
{[%clk 1:04:25]} 32. Qxe8 {[%clk 0:58:58]} 1-0

[Variant "Standard"]
[Site "Europe Echecs"]

[Event "Championnat du monde jeunes U12F"]
[Date "2024.11.15"]
[White "Saharkar, Sharvari"]
[Black "Zavivaeva, Kristina"]
[WhiteElo "1581"]
[BlackElo "1775"]
[Round "1.23"]
[Result "0-1"]
[TimeControl "5400+30"]

1. e4 {[%clk 1:30:58]} 1... c5 {[%clk 1:30:53]} 2. Nc3 d6 {[%clk 1:31:16]} 3.
Nge2 {[%clk 1:31:37]} 3... Nf6 {[%clk 1:31:12]} 4. d4 {[%clk 1:31:35]} 4... cxd4
{[%clk 1:31:35]} 5. Nxd4 {[%clk 1:31:55]} 5... a6 {[%clk 1:31:42]} 6. Be3 {[%clk
1:31:24]} 6... e5 {[%clk 1:31:28]} 7. Nb3 {[%clk 1:31:34]} 7... Be6 {[%clk
1:31:23]} 8. f3 {[%clk 1:30:14]} 8... Be7 {[%clk 1:31:20]} 9. Qd2 {[%clk
1:29:22]} 9... Nbd7 {[%clk 1:31:38]} 10. Bd3 {[%clk 1:28:16]} 10... b5 {[%clk
1:31:32]} 11. a3 {[%clk 1:26:11]} 11... O-O {[%clk 1:29:24]} 12. O-O {[%clk
1:23:11]} 12... Nc5 {[%clk 1:27:50]} 13. Nd5 {[%clk 1:19:12]} 13... Rc8 {[%clk
1:24:27]} 14. Rac1 {[%clk 1:15:25]} 14... Bxd5 {[%clk 1:18:38]} 15. exd5 {[%clk
1:12:14]} 15... Qc7 {[%clk 1:11:45]} 16. Rfe1 {[%clk 1:06:36]} 16... Qb7 {[%clk
1:01:15]} 17. Bf5 {[%clk 0:58:05]} 17... Rcd8 {[%clk 0:59:11]} 18. Bxc5 {[%clk
0:57:26]} 18... dxc5 {[%clk 0:59:32]} 19. Rxe5 {[%clk 0:52:33]} 19... Qc7 {[%clk
0:56:44]} 20. Qg5 {[%clk 0:39:01]} 20... h6 {[%clk 0:54:30]} 21. Bh7+ {[%clk
0:27:07]} 21... Kxh7 {[%clk 0:54:27]} 22. Qe3 {[%clk 0:26:15]} 22... Bd6 {[%clk
0:54:17]} 23. Rf5 {[%clk 0:25:15]} 23... Rfe8 {[%clk 0:53:26]} 24. Qd2 {[%clk
0:22:35]} 24... Bxh2+ {[%clk 0:53:11]} 25. Kf1 {[%clk 0:22:06]} 25... c4 {[%clk
0:52:27]} 26. Na5 {[%clk 0:20:30]} 26... Qb6 {[%clk 0:52:15]} 27. Qf2 {[%clk
0:18:50]} 27... Qxa5 {[%clk 0:52:36]} 28. g3 {[%clk 0:17:35]} 28... Nxd5 {[%clk
0:52:47]} 29. Rxd5 {[%clk 0:15:27]} 29... Rxd5 {[%clk 0:53:10]} 30. Qxh2 {[%clk
0:15:43]} 30... Rd2 {[%clk 0:53:26]} 31. Qh3 {[%clk 0:14:53]} 31... Qb6 {[%clk
0:53:53]} 32. Qf5+ {[%clk 0:14:10]} 32... Kg8 {[%clk 0:54:13]} 33. Re1 {[%clk
0:12:29]} 33... Qf2# {[%clk 0:54:37]} 0-1

[Variant "Standard"]
[Site "Europe Echecs"]

[Event "Championnat du monde jeunes U12F"]
[Date "2024.11.15"]
[White "Mozolevskaya, Tatyana Nik"]
[Black "Dzafic, Merjem"]
[WhiteElo "1775"]
[BlackElo "1568"]
[Round "1.24"]
[Result "1-0"]
[TimeControl "5400+30"]

1. Nf3 {[%clk 1:30:59]} 1... c6 {[%clk 1:30:46]} 2. g3 {[%clk 1:31:25]} 2... d5
{[%clk 1:31:04]} 3. Bg2 {[%clk 1:31:51]} 3... Nf6 {[%clk 1:31:06]} 4. O-O {[%clk
1:32:15]} 4... Bf5 {[%clk 1:31:10]} 5. d3 {[%clk 1:32:40]} 5... e6 {[%clk
1:31:28]} 6. b3 {[%clk 1:33:06]} 6... Nbd7 {[%clk 1:31:17]} 7. Bb2 {[%clk
1:33:32]} 7... Be7 {[%clk 1:31:04]} 8. Nbd2 {[%clk 1:33:57]} 8... O-O {[%clk
1:30:45]} 9. Re1 {[%clk 1:34:22]} 9... Bg6 {[%clk 1:23:58]} 10. e4 {[%clk
1:32:02]} 10... dxe4 {[%clk 1:23:24]} 11. dxe4 {[%clk 1:32:10]} 11... Qb6 {[%clk
1:21:09]} 12. Qe2 {[%clk 1:30:36]} 12... Rfd8 {[%clk 1:17:59]} 13. Nc4 {[%clk
1:27:55]} 13... Qc7 {[%clk 1:14:14]} 14. Nfe5 {[%clk 1:26:21]} 14... Nc5 {[%clk
0:56:28]} 15. Nxg6 {[%clk 1:21:57]} 15... hxg6 {[%clk 0:55:52]} 16. Be5 {[%clk
1:22:01]} 16... Qc8 {[%clk 0:50:50]} 17. Rad1 {[%clk 1:20:08]} 17... Ncd7 {[%clk
0:43:25]} 18. Bf4 {[%clk 1:15:16]} 18... Nh5 {[%clk 0:40:42]} 19. Bd6 {[%clk
1:14:51]} 19... Bxd6 {[%clk 0:39:04]} 20. Nxd6 {[%clk 1:13:55]} 20... Qc7 {[%clk
0:38:12]} 21. e5 {[%clk 1:13:25]} 21... Nb6 {[%clk 0:32:06]} 22. c4 {[%clk
1:05:53]} 22... Rd7 {[%clk 0:32:06]} 23. Qd2 Rad8 24. g4 {[%clk 1:02:05]} 24...
Nf6 {[%clk 0:31:34]} 25. c5 {[%clk 1:02:29]} 25... Nxg4 {[%clk 0:30:13]} 26.
cxb6 {[%clk 1:02:50]} 26... axb6 {[%clk 0:30:13]} 27. f4 {[%clk 1:02:50]} 27...
f6 {[%clk 0:30:13]} 28. Qe2 {[%clk 1:02:50]} 28... fxe5 {[%clk 0:17:10]} 29.
Qxg4 {[%clk 0:50:05]} 29... Rxd6 {[%clk 0:16:50]} 30. Rxd6 {[%clk 0:50:28]}
30... Qxd6 {[%clk 0:16:26]} 31. fxe5 {[%clk 0:50:54]} 31... Qd7 {[%clk 0:13:42]}
32. Qxg6 {[%clk 0:51:13]} 32... Qd4+ {[%clk 0:12:51]} 33. Kh1 {[%clk 0:51:34]}
33... Qd7 {[%clk 0:11:42]} 34. Be4 {[%clk 0:51:38]} 34... Qf7 {[%clk 0:09:49]}
35. Qh7+ {[%clk 0:50:29]} 35... Kf8 {[%clk 0:10:07]} 36. Kg1 {[%clk 0:50:45]}
36... Ke7 {[%clk 0:10:05]} 37. Rf1 {[%clk 0:51:09]} 37... Rd1 38. Rxd1 1-0

[Variant "Standard"]
[Site "Europe Echecs"]

[Event "Championnat du monde jeunes U12F"]
[Date "2024.11.15"]
[White "Potikha, Shelley"]
[Black "Tu, Audrey"]
[WhiteElo "1561"]
[BlackElo "1765"]
[Round "1.25"]
[Result "0-1"]
[TimeControl "5400+30"]

1. e4 e5 {[%clk 1:30:53]} 2. Nf3 {[%clk 1:31:19]} 2... Nc6 {[%clk 1:31:19]} 3.
Bc4 {[%clk 1:31:42]} 3... Bc5 {[%clk 1:31:40]} 4. c3 {[%clk 1:32:01]} 4... Nf6
{[%clk 1:32:03]} 5. d4 {[%clk 1:32:22]} 5... exd4 {[%clk 1:32:27]} 6. O-O {[%clk
1:32:37]} 6... Nxe4 {[%clk 1:31:57]} 7. cxd4 {[%clk 1:32:45]} 7... d5 {[%clk
1:31:47]} 8. dxc5 {[%clk 1:32:16]} 8... dxc4 {[%clk 1:31:32]} 9. Qe2 {[%clk
1:32:17]} 9... Qd3 {[%clk 1:31:15]} 10. Re1 {[%clk 1:32:24]} 10... f5 {[%clk
1:30:14]} 11. Nc3 {[%clk 1:30:20]} 11... O-O {[%clk 1:25:21]} 12. Nxe4 {[%clk
1:29:28]} 12... fxe4 {[%clk 1:22:40]} 13. Qxe4 {[%clk 1:27:38]} 13... Bf5 {[%clk
1:18:39]} 14. Qh4 {[%clk 1:25:46]} 14... Rae8 {[%clk 1:06:27]} 15. Bf4 {[%clk
1:20:17]} 15... Nd4 {[%clk 0:57:39]} 16. Ne5 {[%clk 1:00:07]} 16... Qc2 {[%clk
0:49:14]} 17. Rad1 {[%clk 0:42:51]} 17... Ne2+ {[%clk 0:46:46]} 18. Kh1 {[%clk
0:40:24]} 18... Nxf4 {[%clk 0:34:14]} 19. Qxf4 {[%clk 0:39:25]} 19... Bd3 {[%clk
0:29:45]} 20. Qd4 {[%clk 0:30:45]} 20... Rd8 {[%clk 0:26:41]} 21. Qg4 {[%clk
0:23:35]} 21... Qxf2 {[%clk 0:23:32]} 22. Qe6+ {[%clk 0:17:01]} 22... Kh8 {[%clk
0:21:38]} 23. Nxd3 {[%clk 0:11:38]} 23... cxd3 {[%clk 0:18:20]} 24. Qe3 {[%clk
0:08:14]} 24... d2 {[%clk 0:15:53]} 25. Qxf2 {[%clk 0:03:53]} 25... Rxf2 {[%clk
0:16:10]} 26. Rg1 {[%clk 0:03:48]} 26... Rd5 {[%clk 0:11:08]} 27. h3 {[%clk
0:01:08]} 27... Rxc5 {[%clk 0:09:14]} 28. Rgf1 {[%clk 0:01:09]} 28... Rxf1+
{[%clk 0:09:11]} 29. Rxf1 {[%clk 0:01:26]} 29... Rc1 {[%clk 0:09:31]} 0-1

[Variant "Standard"]
[Site "Europe Echecs"]

[Event "Championnat du monde jeunes U12F"]
[Date "2024.11.15"]
[White "Jacome Revelo, Daniela Alexandra"]
[Black "Mrad, Anahid"]
[WhiteElo "1764"]
[BlackElo "1558"]
[Round "1.26"]
[Result "0-1"]
[TimeControl "5400+30"]

1. e4 {[%clk 1:30:50]} 1... e5 {[%clk 1:30:45]} 2. Nf3 {[%clk 1:31:00]} 2... Nc6
{[%clk 1:30:58]} 3. Bc4 {[%clk 1:31:01]} 3... Nf6 {[%clk 1:30:54]} 4. d3 {[%clk
1:30:41]} 4... Bc5 {[%clk 1:30:38]} 5. c3 {[%clk 1:29:32]} 5... d5 {[%clk
1:27:56]} 6. exd5 {[%clk 1:27:31]} 6... Nxd5 {[%clk 1:27:40]} 7. Qb3 {[%clk
1:24:21]} 7... O-O {[%clk 1:14:25]} 8. Bxd5 {[%clk 1:21:37]} 8... Na5 {[%clk
1:14:11]} 9. Qb5 {[%clk 1:21:22]} 9... Qxd5 {[%clk 1:13:55]} 10. Qxa5 {[%clk
1:21:22]} 10... Bxf2+ {[%clk 1:14:12]} 11. Kxf2 {[%clk 1:16:32]} 11... Qxa5
{[%clk 1:14:24]} 12. Na3 {[%clk 1:14:18]} 12... Bf5 {[%clk 1:12:10]} 13. Rd1
{[%clk 1:11:45]} 13... Rfd8 {[%clk 1:09:12]} 14. Nc4 {[%clk 1:09:52]} 14... Qb5
{[%clk 1:06:39]} 15. a4 {[%clk 1:04:01]} 15... Qb3 {[%clk 1:03:09]} 16. Be3
{[%clk 0:46:16]} 16... Bxd3 {[%clk 1:00:10]} 17. Nfd2 {[%clk 0:42:31]} 17...
Qxd1 {[%clk 0:58:48]} 18. Rxd1 {[%clk 0:42:47]} 18... Bxc4 {[%clk 0:59:09]} 19.
Nxc4 {[%clk 0:43:00]} 19... Rxd1 {[%clk 0:59:01]} 20. Nd2 {[%clk 0:40:22]} 20...
Rd8 {[%clk 0:58:24]} 21. Ke2 {[%clk 0:40:35]} 21... Ra1 {[%clk 0:58:17]} 22. b3
{[%clk 0:38:52]} 22... f5 {[%clk 0:57:30]} 23. g3 {[%clk 0:38:38]} 23... h6
{[%clk 0:56:27]} 24. h4 {[%clk 0:38:23]} 24... Re8 {[%clk 0:55:59]} 25. Kf3
{[%clk 0:35:26]} 25... Rd8 {[%clk 0:53:37]} 26. Ke2 {[%clk 0:35:16]} 26... a6
{[%clk 0:52:56]} 27. c4 {[%clk 0:34:53]} 27... Kf7 {[%clk 0:52:44]} 28. Nf3
{[%clk 0:33:39]} 28... e4 {[%clk 0:51:36]} 29. Nd2 {[%clk 0:32:36]} 29... Rd3
{[%clk 0:50:52]} 30. Bf4 {[%clk 0:31:54]} 30... Rh1 {[%clk 0:48:52]} 31. Bxc7
{[%clk 0:31:52]} 31... Rh2+ {[%clk 0:49:05]} 32. Ke1 {[%clk 0:31:08]} 32...
Rdxd2 {[%clk 0:49:04]} 33. g4 {[%clk 0:30:46]} 33... fxg4 {[%clk 0:48:40]} 34.
Bxh2 {[%clk 0:31:06]} 34... Rxh2 {[%clk 0:49:03]} 35. b4 {[%clk 0:31:33]} 35...
g3 {[%clk 0:49:18]} 36. Kf1 {[%clk 0:31:56]} 36... e3 {[%clk 0:49:39]} 37. b5
{[%clk 0:32:14]} 37... e2+ {[%clk 0:50:00]} 38. Ke1 {[%clk 0:32:37]} 38... g2
{[%clk 0:50:22]} 39. Kxe2 {[%clk 0:32:53]} 39... g1=Q+ {[%clk 0:50:45]} 40. Kf3
{[%clk 0:33:15]} 40... Qd4 {[%clk 0:50:43]} 41. c5 {[%clk 0:33:36]} 41... Rf2+
{[%clk 0:51:01]} 42. Kg3 {[%clk 0:34:00]} 42... Qf4+ {[%clk 0:51:26]} 43. Kh3
{[%clk 0:34:24]} 43... Rh2# {[%clk 0:51:43]} 0-1

[Variant "Standard"]
[Site "Europe Echecs"]

[Event "Championnat du monde jeunes U12F"]
[Date "2024.11.15"]
[White "Moscovitch, Shelly"]
[Black "Alcantara, Levanah"]
[WhiteElo "1552"]
[BlackElo "1753"]
[Round "1.27"]
[Result "1/2-1/2"]
[TimeControl "5400+30"]

1. e4 {[%clk 1:30:44]} 1... e6 {[%clk 1:30:53]} 2. d4 {[%clk 1:30:27]} 2... d5
{[%clk 1:31:10]} 3. e5 {[%clk 1:30:10]} 3... c5 {[%clk 1:31:30]} 4. c3 {[%clk
1:29:44]} 4... Nc6 {[%clk 1:31:49]} 5. Nf3 {[%clk 1:28:58]} 5... Nge7 {[%clk
1:31:51]} 6. Na3 {[%clk 1:28:08]} 6... cxd4 {[%clk 1:31:44]} 7. cxd4 {[%clk
1:27:02]} 7... Nf5 {[%clk 1:31:49]} 8. Nc2 {[%clk 1:25:35]} 8... Nb4 {[%clk
1:29:17]} 9. Nxb4 {[%clk 1:17:16]} 9... Bxb4+ {[%clk 1:29:34]} 10. Bd2 {[%clk
1:16:48]} 10... Qa5 {[%clk 1:22:41]} 11. Be2 {[%clk 1:11:46]} 11... Bd7 {[%clk
1:19:02]} 12. a3 {[%clk 1:07:33]} 12... Bxd2+ {[%clk 1:17:35]} 13. Qxd2 {[%clk
1:07:15]} 13... Qxd2+ {[%clk 1:17:11]} 14. Kxd2 {[%clk 1:06:57]} 14... Ke7
{[%clk 1:15:34]} 15. Rac1 {[%clk 1:04:42]} 15... Rac8 {[%clk 1:12:40]} 16. Bd3
{[%clk 0:53:49]} 16... a5 {[%clk 1:03:22]} 17. b4 {[%clk 0:46:05]} 17... axb4
{[%clk 1:01:32]} 18. axb4 {[%clk 0:46:18]} 18... Ra8 {[%clk 0:58:29]} 19. Ra1
{[%clk 0:44:57]} 19... h5 {[%clk 0:51:38]} 20. Rhc1 {[%clk 0:40:24]} 20... Nh6
{[%clk 0:46:55]} 21. Rxa8 {[%clk 0:36:16]} 21... Rxa8 {[%clk 0:47:17]} 22. Rc7
{[%clk 0:34:07]} 22... Ra2+ {[%clk 0:46:59]} 23. Ke1 {[%clk 0:33:23]} 23... Kd8
{[%clk 0:44:48]} 24. Rxb7 Ng4 {[%clk 0:42:59]} 25. Nd2 {[%clk 0:26:13]} 25...
Kc8 {[%clk 0:38:56]} 26. Rb6 {[%clk 0:24:50]} 26... Ba4 {[%clk 0:36:52]} 27. h3
{[%clk 0:21:39]} 27... Nxf2 {[%clk 0:33:33]} 28. Ba6+ {[%clk 0:19:01]} 28... Kd8
{[%clk 0:32:12]} 29. Rb8+ {[%clk 0:18:29]} 29... Ke7 {[%clk 0:32:20]} 30. Rb7+
{[%clk 0:18:31]} 30... Kf8 {[%clk 0:29:18]} 31. Rb8+ {[%clk 0:18:51]} 31... Ke7
{[%clk 0:29:38]} 32. Rb7+ {[%clk 0:18:57]} 32... Ke8 {[%clk 0:29:52]} 33. Rb8+
{[%clk 0:18:57]} 33... Kd7 {[%clk 0:30:02]} 34. Rb7+ {[%clk 0:18:39]} 1/2-1/2

[Variant "Standard"]
[Site "Europe Echecs"]

[Event "Championnat du monde jeunes U12F"]
[Date "2024.11.15"]
[White "Aadya Ranganath"]
[Black "Liang, Candice"]
[WhiteElo "1753"]
[BlackElo "1551"]
[Round "1.28"]
[Result "1-0"]
[TimeControl "5400+30"]

1. e4 {[%clk 1:30:58]} 1... c5 {[%clk 1:30:55]} 2. Nf3 {[%clk 1:31:19]} 2... Nc6
{[%clk 1:31:20]} 3. d4 {[%clk 1:31:38]} 3... cxd4 {[%clk 1:31:45]} 4. Nxd4
{[%clk 1:32:03]} 4... g6 {[%clk 1:32:04]} 5. c4 {[%clk 1:31:59]} 5... Bg7 {[%clk
1:32:20]} 6. Be3 {[%clk 1:32:09]} 6... Nf6 {[%clk 1:32:28]} 7. Nc3 {[%clk
1:31:39]} 7... O-O {[%clk 1:32:19]} 8. Be2 {[%clk 1:31:27]} 8... d6 {[%clk
1:31:55]} 9. O-O {[%clk 1:29:13]} 9... Bd7 {[%clk 1:30:29]} 10. Kh1 {[%clk
1:25:08]} 10... Rc8 {[%clk 1:28:26]} 11. f4 {[%clk 1:20:08]} 11... Na5 {[%clk
1:24:05]} 12. b3 {[%clk 1:16:25]} 12... a6 {[%clk 1:15:03]} 13. Rc1 {[%clk
1:12:36]} 13... Nc6 {[%clk 1:11:40]} 14. Bf3 {[%clk 1:02:13]} 14... h5 {[%clk
1:09:56]} 15. h3 {[%clk 0:58:41]} 15... Kh7 {[%clk 0:59:43]} 16. Nd5 {[%clk
0:53:40]} 16... e6 {[%clk 0:57:26]} 17. Nc3 {[%clk 0:47:33]} 17... Qe7 {[%clk
0:46:06]} 18. Nc2 {[%clk 0:43:27]} 18... Ne8 {[%clk 0:43:01]} 19. Na4 {[%clk
0:38:37]} 19... b5 {[%clk 0:39:23]} 20. Nb6 {[%clk 0:37:12]} 20... Rb8 {[%clk
0:37:59]} 21. c5 {[%clk 0:35:23]} 21... Bc8 {[%clk 0:35:28]} 22. cxd6 {[%clk
0:25:32]} 22... Qxd6 {[%clk 0:32:30]} 23. Qe2 {[%clk 0:22:51]} 23... e5 {[%clk
0:17:57]} 24. Rfd1 {[%clk 0:22:11]} 24... Qe6 {[%clk 0:17:27]} 25. f5 {[%clk
0:19:42]} 25... Qe7 {[%clk 0:14:05]} 26. Ne1 {[%clk 0:17:43]} 26... Qb7 {[%clk
0:13:41]} 27. Qc2 {[%clk 0:16:41]} 27... Na7 {[%clk 0:10:40]} 28. Rd8 {[%clk
0:12:57]} 28... Nf6 {[%clk 0:08:28]} 29. Rxf8 {[%clk 0:13:00]} 29... Bxf8 {[%clk
0:08:40]} 30. fxg6+ {[%clk 0:12:12]} 30... Kxg6 {[%clk 0:08:23]} 31. Nd5 {[%clk
0:11:47]} 31... Bg7 {[%clk 0:04:55]} 32. Qf2 {[%clk 0:09:25]} 32... Nc6 {[%clk
0:04:31]} 33. Rxc6 {[%clk 0:09:05]} 33... Be6 {[%clk 0:03:22]} 34. Rc7 {[%clk
0:08:03]} 34... Bxd5 {[%clk 0:02:37]} 35. Rxb7 {[%clk 0:08:24]} 35... Bxb7
{[%clk 0:02:59]} 36. Qg3+ {[%clk 0:08:43]} 36... Kh7 {[%clk 0:03:00]} 37. Qxe5
{[%clk 0:08:57]} 37... Nxe4 {[%clk 0:02:59]} 38. Bxe4+ {[%clk 0:09:12]} 38...
Bxe4 {[%clk 0:03:19]} 39. Qxb8 {[%clk 0:09:36]} 39... Bb1 {[%clk 0:03:34]} 40.
a4 {[%clk 0:09:41]} 40... bxa4 {[%clk 0:03:55]} 41. bxa4 {[%clk 0:10:06]} 41...
Bg6 {[%clk 0:04:05]} 42. Nf3 {[%clk 0:10:30]} 42... f6 {[%clk 0:04:08]} 43. Qb7
{[%clk 0:10:22]} 43... a5 {[%clk 0:04:10]} 44. Bd4 {[%clk 0:10:47]} 44... Kg8
{[%clk 0:04:15]} 45. Ng5 {[%clk 0:11:11]} 45... h4 {[%clk 0:03:58]} 46. Qc8+
{[%clk 0:11:29]} 46... Bf8 {[%clk 0:04:12]} 47. Qe6+ {[%clk 0:11:46]} 1-0

[Variant "Standard"]
[Site "Europe Echecs"]